[Event "Titled Tuesday Blitz July 18 Early 2023"]
[White "Kramnik, Vladimir"]
[Black "Donchenko, Alexander"]
[WhiteFideId "4101588"]
[BlackFideId "24603295"]
[WhiteElo "2988"]
[BlackElo "2869"]
[Result "1-0"]
[Round "10"]
[TimeControl "180+2"]
[Date "2023.07.18"]
[WhiteClock "0:00:03"]
[BlackClock "0:00:00"]
[Board "7"]

1. e4 {[%clk 0:03:00]}  c5 {[%clk 0:03:00]} 2. Nf3 {[%clk 0:03:00]}  d6 {[%clk 0:03:00]} 3. d4 {[%clk 0:03:00]}  cxd4 {[%clk 0:03:01]} 4. Nxd4 {[%clk 0:03:00]}  Nf6 {[%clk 0:03:02]} 5. Nc3 {[%clk 0:03:00]}  a6 {[%clk 0:03:02]} 6. Bc4 {[%clk 0:02:59]}  e6 {[%clk 0:03:02]} 7. Be3 {[%clk 0:02:59]}  Be7 {[%clk 0:03:00]} 8. Bb3 {[%clk 0:02:57]}  O-O {[%clk 0:02:55]} 9. g4 {[%clk 0:02:56]}  Nc6 {[%clk 0:02:39]} 10. g5 {[%clk 0:02:52]}  Nd7 {[%clk 0:02:15]} 11. h4 {[%clk 0:02:50]}  Nc5 {[%clk 0:02:06]} 12. Nxc6 {[%clk 0:02:45]}  bxc6 {[%clk 0:02:07]} 13. Bxc5 {[%clk 0:02:44]}  dxc5 {[%clk 0:02:07]} 14. Qe2 {[%clk 0:02:19]}  Rb8 {[%clk 0:02:03]} 15. Rd1 {[%clk 0:02:16]}  Qc7 {[%clk 0:02:02]} 16. g6 {[%clk 0:01:45]}  fxg6 {[%clk 0:01:59]} 17. h5 {[%clk 0:01:44]}  g5 {[%clk 0:01:46]} 18. h6 {[%clk 0:01:44]}  g6 {[%clk 0:01:47]} 19. e5 {[%clk 0:01:24]}  c4 {[%clk 0:01:40]} 20. Bxc4 {[%clk 0:01:22]}  Rxb2 {[%clk 0:01:40]} 21. Kf1 {[%clk 0:01:22]}  Qa5 {[%clk 0:01:35]} 22. Rh3 {[%clk 0:01:13]}  g4 {[%clk 0:01:24]} 23. Qxg4 {[%clk 0:00:56]}  Rxc2 {[%clk 0:01:08]} 24. Bxe6+ {[%clk 0:00:55]}  Kh8 {[%clk 0:01:08]} 25. Rf3 {[%clk 0:00:43]}  Rxf3 {[%clk 0:00:38]} 26. Qxf3 {[%clk 0:00:38]}  Bxe6 {[%clk 0:00:36]} 27. Ne4 {[%clk 0:00:11]}  Bd5 {[%clk 0:00:25]} 28. Qf4 {[%clk 0:00:05]}  Qb4 {[%clk 0:00:21]} 29. e6 {[%clk 0:00:05]}  Qb2 {[%clk 0:00:10]} 30. Qf7 {[%clk 0:00:04]}  Qb8 {[%clk 0:00:02]} 31. Qxe7 {[%clk 0:00:03]}  Qg8 {[%clk 0:00:00]} 32. Qf6+ {[%clk 0:00:03]} 1-0


[Site "https://www.chess.com"]

[Event "Titled Tuesday Blitz July 18 Early 2023"]
[White "Oparin, Grigoriy"]
[Black "Bacrot, Etienne"]
[WhiteFideId "24125890"]
[BlackFideId "605506"]
[WhiteElo "2984"]
[BlackElo "2860"]
[Result "1-0"]
[Round "10"]
[TimeControl "180+2"]
[Date "2023.07.18"]
[WhiteClock "0:00:12"]
[BlackClock "0:00:00"]
[Board "8"]

1. Nf3 {[%clk 0:03:00]}  d5 {[%clk 0:02:59]} 2. e3 {[%clk 0:03:00]}  Nf6 {[%clk 0:03:00]} 3. c4 {[%clk 0:03:00]}  e6 {[%clk 0:03:00]} 4. b3 {[%clk 0:03:00]}  b6 {[%clk 0:03:00]} 5. Bb2 {[%clk 0:02:59]}  Bb7 {[%clk 0:03:01]} 6. Rg1 {[%clk 0:02:58]}  Nbd7 {[%clk 0:03:02]} 7. g4 {[%clk 0:02:58]}  c5 {[%clk 0:02:54]} 8. g5 {[%clk 0:02:55]}  Ne4 {[%clk 0:02:55]} 9. d3 {[%clk 0:02:49]}  Nd6 {[%clk 0:02:54]} 10. Nc3 {[%clk 0:02:36]}  Qc7 {[%clk 0:02:41]} 11. Rc1 {[%clk 0:02:26]}  dxc4 {[%clk 0:02:39]} 12. bxc4 {[%clk 0:02:25]}  h6 {[%clk 0:02:28]} 13. g6 {[%clk 0:02:22]}  f6 {[%clk 0:02:10]} 14. Qe2 {[%clk 0:02:09]}  Be7 {[%clk 0:01:54]} 15. e4 {[%clk 0:02:05]}  O-O {[%clk 0:01:49]} 16. Bh3 {[%clk 0:01:57]}  f5 {[%clk 0:01:43]} 17. e5 {[%clk 0:00:59]}  Bxf3 {[%clk 0:01:42]} 18. Qxf3 {[%clk 0:00:42]}  Nxe5 {[%clk 0:01:42]} 19. Qe2 {[%clk 0:00:42]}  Bf6 {[%clk 0:01:00]} 20. f4 {[%clk 0:00:42]}  Nxd3+ {[%clk 0:00:51]} 21. Qxd3 {[%clk 0:00:41]}  Ne4 {[%clk 0:00:43]} 22. Qf3 {[%clk 0:00:25]}  Rad8 {[%clk 0:00:34]} 23. Rg2 {[%clk 0:00:25]}  Rd4 {[%clk 0:00:19]} 24. Nb5 {[%clk 0:00:23]}  Qd7 {[%clk 0:00:05]} 25. Nxd4 {[%clk 0:00:23]}  cxd4 {[%clk 0:00:06]} 26. Rd1 {[%clk 0:00:21]}  Rd8 {[%clk 0:00:06]} 27. Kf1 {[%clk 0:00:14]}  Qa4 {[%clk 0:00:06]} 28. Qb3 {[%clk 0:00:14]}  Qa5 {[%clk 0:00:05]} 29. Re2 {[%clk 0:00:13]}  Qc5 {[%clk 0:00:04]} 30. Bg2 {[%clk 0:00:13]}  Qc7 {[%clk 0:00:03]} 31. Bxe4 {[%clk 0:00:13]}  fxe4 {[%clk 0:00:02]} 32. Rxe4 {[%clk 0:00:14]}  e5 {[%clk 0:00:00]} 33. f5 {[%clk 0:00:12]} 1-0


[Site "https://www.chess.com"]

[Event "Titled Tuesday Blitz July 18 Early 2023"]
[White "Pranav, V"]
[Black "KhalilMousavi98"]
[WhiteFideId "25060783"]
[WhiteElo "2959"]
[BlackElo "2834"]
[Result "1-0"]
[Round "10"]
[TimeControl "180+2"]
[Date "2023.07.18"]
[WhiteClock "0:00:49"]
[BlackClock "0:00:01"]
[Board "9"]

1. e4 {[%clk 0:03:00]}  c5 {[%clk 0:02:59]} 2. Nf3 {[%clk 0:03:00]}  e6 {[%clk 0:02:58]} 3. d4 {[%clk 0:03:00]}  cxd4 {[%clk 0:02:59]} 4. Nxd4 {[%clk 0:03:00]}  Nf6 {[%clk 0:03:00]} 5. Nc3 {[%clk 0:03:00]}  Nc6 {[%clk 0:03:01]} 6. a3 {[%clk 0:03:01]}  Qc7 {[%clk 0:02:52]} 7. Be2 {[%clk 0:02:48]}  a6 {[%clk 0:02:51]} 8. O-O {[%clk 0:02:45]}  Nxd4 {[%clk 0:02:49]} 9. Qxd4 {[%clk 0:02:45]}  Bc5 {[%clk 0:02:46]} 10. Qd3 {[%clk 0:02:44]}  h5 {[%clk 0:02:43]} 11. Be3 {[%clk 0:02:38]}  Bxe3 {[%clk 0:02:30]} 12. Qxe3 {[%clk 0:02:39]}  d6 {[%clk 0:02:23]} 13. Rad1 {[%clk 0:02:39]}  b5 {[%clk 0:02:20]} 14. Qg3 {[%clk 0:02:35]}  Ke7 {[%clk 0:02:20]} 15. Bf3 {[%clk 0:02:12]}  h4 {[%clk 0:02:10]} 16. Qg5 {[%clk 0:02:10]}  Bb7 {[%clk 0:02:02]} 17. Rfe1 {[%clk 0:01:54]}  Rad8 {[%clk 0:01:38]} 18. h3 {[%clk 0:01:54]}  Qc5 {[%clk 0:01:24]} 19. e5 {[%clk 0:01:46]}  dxe5 {[%clk 0:00:48]} 20. Bxb7 {[%clk 0:01:45]}  Rxd1 {[%clk 0:00:46]} 21. Rxd1 {[%clk 0:01:46]}  Rh5 {[%clk 0:00:47]} 22. Qd2 {[%clk 0:01:43]}  Qb6 {[%clk 0:00:44]} 23. Bf3 {[%clk 0:01:36]}  Rf5 {[%clk 0:00:45]} 24. Bc6 {[%clk 0:01:24]}  Qc7 {[%clk 0:00:33]} 25. Ne4 {[%clk 0:01:16]}  Nxe4 {[%clk 0:00:24]} 26. Qd7+ {[%clk 0:00:54]}  Qxd7 {[%clk 0:00:24]} 27. Rxd7+ {[%clk 0:00:55]}  Kf6 {[%clk 0:00:20]} 28. Bxe4 {[%clk 0:00:55]}  Rf4 {[%clk 0:00:21]} 29. f3 {[%clk 0:00:55]}  Kg5 {[%clk 0:00:19]} 30. Rd6 {[%clk 0:00:55]}  f5 {[%clk 0:00:15]} 31. Bd3 {[%clk 0:00:54]}  e4 {[%clk 0:00:15]} 32. fxe4 {[%clk 0:00:54]}  fxe4 {[%clk 0:00:16]} 33. Be2 {[%clk 0:00:55]}  Kf6 {[%clk 0:00:13]} 34. Bg4 {[%clk 0:00:54]}  Ke5 {[%clk 0:00:13]} 35. Rxe6+ {[%clk 0:00:49]}  Kd4 {[%clk 0:00:14]} 36. Rxa6 {[%clk 0:00:49]}  e3 {[%clk 0:00:10]} 37. Rd6+ {[%clk 0:00:49]}  Ke5 {[%clk 0:00:07]} 38. Re6+ {[%clk 0:00:49]}  Kd4 {[%clk 0:00:01]} 39. Be2 {[%clk 0:00:49]} 1-0


[Site "https://www.chess.com"]

[Event "Titled Tuesday Blitz July 18 Early 2023"]
[White "Jones, Gawain C B"]
[Black "Bachmann, Axel"]
[WhiteFideId "409561"]
[BlackFideId "3700488"]
[WhiteElo "2929"]
[BlackElo "2820"]
[Result "1/2-1/2"]
[Round "10"]
[TimeControl "180+2"]
[Date "2023.07.18"]
[WhiteClock "0:00:05"]
[BlackClock "0:00:07"]
[Board "10"]

1. Nf3 {[%clk 0:03:00]}  Nf6 {[%clk 0:02:12]} 2. c4 {[%clk 0:02:58]}  e6 {[%clk 0:02:12]} 3. g3 {[%clk 0:02:58]}  d5 {[%clk 0:02:11]} 4. Bg2 {[%clk 0:02:59]}  dxc4 {[%clk 0:02:10]} 5. Qa4+ {[%clk 0:02:57]}  Nbd7 {[%clk 0:02:11]} 6. O-O {[%clk 0:02:56]}  a6 {[%clk 0:02:11]} 7. Qxc4 {[%clk 0:02:56]}  b5 {[%clk 0:02:11]} 8. Qc2 {[%clk 0:02:55]}  Bb7 {[%clk 0:02:10]} 9. a4 {[%clk 0:02:53]}  c5 {[%clk 0:02:10]} 10. Na3 {[%clk 0:02:52]}  Be7 {[%clk 0:01:52]} 11. d3 {[%clk 0:02:52]}  O-O {[%clk 0:01:51]} 12. Bd2 {[%clk 0:02:48]}  Bc6 {[%clk 0:01:37]} 13. Rfc1 {[%clk 0:02:23]}  Qb6 {[%clk 0:01:35]} 14. Be3 {[%clk 0:02:11]}  Nd5 {[%clk 0:01:33]} 15. Bg5 {[%clk 0:02:07]}  Bxg5 {[%clk 0:01:23]} 16. Nxg5 {[%clk 0:02:07]}  Nb4 {[%clk 0:01:23]} 17. Qd2 {[%clk 0:02:02]}  Bxg2 {[%clk 0:01:24]} 18. Kxg2 {[%clk 0:02:03]}  Rac8 {[%clk 0:01:19]} 19. axb5 {[%clk 0:01:58]}  axb5 {[%clk 0:01:19]} 20. Nc2 {[%clk 0:01:53]}  Qb7+ {[%clk 0:01:13]} 21. Kg1 {[%clk 0:01:52]}  Nc6 {[%clk 0:01:10]} 22. Ne4 {[%clk 0:01:51]}  h6 {[%clk 0:01:03]} 23. Nd6 {[%clk 0:01:50]}  Qb8 {[%clk 0:01:00]} 24. Nxc8 {[%clk 0:01:50]}  Rxc8 {[%clk 0:01:01]} 25. b4 {[%clk 0:01:47]}  cxb4 {[%clk 0:00:57]} 26. Nxb4 {[%clk 0:01:46]}  Nd4 {[%clk 0:00:58]} 27. Qe3 {[%clk 0:01:17]}  Rxc1+ {[%clk 0:00:56]} 28. Rxc1 {[%clk 0:01:15]}  Qd6 {[%clk 0:00:56]} 29. Rc8+ {[%clk 0:01:12]}  Kh7 {[%clk 0:00:56]} 30. Nc2 {[%clk 0:01:08]}  Nb6 {[%clk 0:00:49]} 31. Qe4+ {[%clk 0:00:36]}  f5 {[%clk 0:00:48]} 32. Qxd4 {[%clk 0:00:37]}  Qxd4 {[%clk 0:00:47]} 33. Nxd4 {[%clk 0:00:38]}  Nxc8 {[%clk 0:00:47]} 34. Nxb5 {[%clk 0:00:33]}  Kg6 {[%clk 0:00:46]} 35. f4 {[%clk 0:00:32]}  Kf6 {[%clk 0:00:46]} 36. Kf2 {[%clk 0:00:32]}  g5 {[%clk 0:00:46]} 37. Ke3 {[%clk 0:00:27]}  Ne7 {[%clk 0:00:44]} 38. Nc7 {[%clk 0:00:24]}  Nc6 {[%clk 0:00:38]} 39. Nb5 {[%clk 0:00:17]}  Nb4 {[%clk 0:00:37]} 40. Nc3 {[%clk 0:00:15]}  Nc2+ {[%clk 0:00:36]} 41. Kf2 {[%clk 0:00:12]}  e5 {[%clk 0:00:34]} 42. fxe5+ {[%clk 0:00:10]}  Kxe5 {[%clk 0:00:35]} 43. e3 {[%clk 0:00:09]}  g4 {[%clk 0:00:27]} 44. d4+ {[%clk 0:00:07]}  Ke6 {[%clk 0:00:27]} 45. Ne2 {[%clk 0:00:04]}  Kd5 {[%clk 0:00:27]} 46. Nf4+ {[%clk 0:00:02]}  Ke4 {[%clk 0:00:27]} 47. d5 {[%clk 0:00:03]}  Ke5 {[%clk 0:00:21]} 48. h3 {[%clk 0:00:01]}  Nb4 {[%clk 0:00:18]} 49. hxg4 {[%clk 0:00:01]}  fxg4 {[%clk 0:00:19]} 50. e4 {[%clk 0:00:01]}  Kxe4 {[%clk 0:00:19]} 51. d6 {[%clk 0:00:02]}  Nc6 {[%clk 0:00:20]} 52. d7 {[%clk 0:00:02]}  Kf5 {[%clk 0:00:19]} 53. Nd5 {[%clk 0:00:02]}  Ke6 {[%clk 0:00:17]} 54. Nb6 {[%clk 0:00:02]}  Ke7 {[%clk 0:00:14]} 55. Ke3 {[%clk 0:00:03]}  h5 {[%clk 0:00:06]} 56. Kf4 {[%clk 0:00:03]}  Nd4 {[%clk 0:00:06]} 57. Kg5 {[%clk 0:00:04]}  Ne2 {[%clk 0:00:06]} 58. Kh4 {[%clk 0:00:04]}  Kd8 {[%clk 0:00:07]} 59. Nd5 {[%clk 0:00:04]}  Kxd7 {[%clk 0:00:06]} 60. Nf6+ {[%clk 0:00:05]}  Ke6 {[%clk 0:00:07]} 61. Nxh5 {[%clk 0:00:05]}  Nxg3 {[%clk 0:00:07]} 62. Kxg4 {[%clk 0:00:05]} 1/2-1/2


[Site "https://www.chess.com"]

[Event "Titled Tuesday Blitz July 18 Early 2023"]
[White "Dzhumagaliev, Yan"]
[Black "Antipov, Mikhail Al."]
[WhiteFideId "24100110"]
[BlackFideId "4107012"]
[WhiteElo "2776"]
[BlackElo "2921"]
[Result "0-1"]
[Round "10"]
[TimeControl "180+2"]
[Date "2023.07.18"]
[WhiteClock "0:00:11"]
[BlackClock "0:00:11"]
[Board "11"]

1. Nf3 {[%clk 0:02:58]}  d5 {[%clk 0:02:59]} 2. h4 {[%clk 0:02:59]}  Nf6 {[%clk 0:02:55]} 3. h5 {[%clk 0:03:00]}  h6 {[%clk 0:02:54]} 4. d4 {[%clk 0:03:00]}  Nc6 {[%clk 0:02:32]} 5. c4 {[%clk 0:02:58]}  Bf5 {[%clk 0:02:12]} 6. Nc3 {[%clk 0:02:55]}  e6 {[%clk 0:02:10]} 7. a3 {[%clk 0:02:55]}  Bd6 {[%clk 0:02:02]} 8. c5 {[%clk 0:02:42]}  Be7 {[%clk 0:02:02]} 9. Bf4 {[%clk 0:02:43]}  Bg4 {[%clk 0:01:47]} 10. Ne5 {[%clk 0:02:43]}  Nxh5 {[%clk 0:01:48]} 11. Nxc6 {[%clk 0:02:21]}  bxc6 {[%clk 0:01:49]} 12. Be5 {[%clk 0:02:22]}  Nf6 {[%clk 0:01:42]} 13. Qa4 {[%clk 0:02:18]}  Qd7 {[%clk 0:01:41]} 14. f3 {[%clk 0:02:15]}  Bf5 {[%clk 0:01:39]} 15. g4 {[%clk 0:02:16]}  Bg6 {[%clk 0:01:30]} 16. Qa5 {[%clk 0:02:04]}  O-O {[%clk 0:01:05]} 17. Qxc7 {[%clk 0:02:01]}  Qxc7 {[%clk 0:01:05]} 18. Bxc7 {[%clk 0:02:01]}  Nd7 {[%clk 0:01:06]} 19. b4 {[%clk 0:01:50]}  Bf6 {[%clk 0:01:01]} 20. e3 {[%clk 0:01:33]}  a5 {[%clk 0:00:54]} 21. b5 {[%clk 0:00:41]}  Nxc5 {[%clk 0:00:42]} 22. b6 {[%clk 0:00:41]}  Nb7 {[%clk 0:00:31]} 23. Rc1 {[%clk 0:00:37]}  a4 {[%clk 0:00:22]} 24. Na2 {[%clk 0:00:26]}  Be7 {[%clk 0:00:21]} 25. Rc3 {[%clk 0:00:19]}  Rfc8 {[%clk 0:00:19]} 26. Kd2 {[%clk 0:00:16]}  f6 {[%clk 0:00:15]} 27. Bd3 {[%clk 0:00:14]}  Be8 {[%clk 0:00:12]} 28. f4 {[%clk 0:00:12]}  c5 {[%clk 0:00:06]} 29. dxc5 {[%clk 0:00:13]}  Nxc5 {[%clk 0:00:07]} 30. Rxc5 {[%clk 0:00:12]}  Bxc5 {[%clk 0:00:08]} 31. b7 {[%clk 0:00:12]}  Bxa3 {[%clk 0:00:07]} 32. Rb1 {[%clk 0:00:10]}  Rab8 {[%clk 0:00:04]} 33. Bxb8 {[%clk 0:00:10]}  Rxb8 {[%clk 0:00:04]} 34. Ba6 {[%clk 0:00:09]}  Bc5 {[%clk 0:00:03]} 35. Rc1 {[%clk 0:00:09]}  Bd6 {[%clk 0:00:03]} 36. Rc8 {[%clk 0:00:09]}  Kf7 {[%clk 0:00:04]} 37. Kd3 {[%clk 0:00:08]}  a3 {[%clk 0:00:04]} 38. Nc3 {[%clk 0:00:08]}  Ke7 {[%clk 0:00:03]} 39. Kc2 {[%clk 0:00:07]}  Bd7 {[%clk 0:00:03]} 40. Rxb8 {[%clk 0:00:05]}  Bxb8 {[%clk 0:00:03]} 41. Kb3 {[%clk 0:00:06]}  Kd6 {[%clk 0:00:03]} 42. Kxa3 {[%clk 0:00:06]}  Kc7 {[%clk 0:00:03]} 43. Kb3 {[%clk 0:00:04]}  Kb6 {[%clk 0:00:03]} 44. Bd3 {[%clk 0:00:04]}  Kxb7 {[%clk 0:00:03]} 45. Bg6 {[%clk 0:00:05]}  Kc6 {[%clk 0:00:04]} 46. Ne2 {[%clk 0:00:05]}  Kd6 {[%clk 0:00:04]} 47. Nd4 {[%clk 0:00:06]}  Ba7 {[%clk 0:00:05]} 48. Kc3 {[%clk 0:00:06]}  e5 {[%clk 0:00:06]} 49. Nf5+ {[%clk 0:00:07]}  Bxf5 {[%clk 0:00:06]} 50. gxf5 {[%clk 0:00:07]}  Bxe3 {[%clk 0:00:07]} 51. fxe5+ {[%clk 0:00:08]}  fxe5 {[%clk 0:00:07]} 52. Kd3 {[%clk 0:00:09]}  Bg5 {[%clk 0:00:08]} 53. Ke2 {[%clk 0:00:09]}  Bf6 {[%clk 0:00:08]} 54. Kd3 {[%clk 0:00:10]}  e4+ {[%clk 0:00:09]} 55. Ke3 {[%clk 0:00:11]}  Ke5 {[%clk 0:00:10]} 56. Ke2 {[%clk 0:00:11]}  d4 {[%clk 0:00:11]} 57. Kd2 {[%clk 0:00:11]}  Bg5+ {[%clk 0:00:11]} 0-1


[Site "https://www.chess.com"]

[Event "Titled Tuesday Blitz July 18 Early 2023"]
[White "Zemlyanskii, Ivan"]
[Black "Amilal Munkhdalai"]
[WhiteFideId "24249971"]
[BlackFideId "4903250"]
[WhiteElo "2898"]
[BlackElo "2738"]
[Result "1-0"]
[Round "10"]
[TimeControl "180+2"]
[Date "2023.07.18"]
[WhiteClock "0:00:03"]
[BlackClock "0:00:04"]
[Board "12"]

1. d4 {[%clk 0:03:00]}  Nf6 {[%clk 0:02:59]} 2. c4 {[%clk 0:03:00]}  e6 {[%clk 0:03:00]} 3. Bf4 {[%clk 0:03:01]}  b6 {[%clk 0:02:59]} 4. Nc3 {[%clk 0:02:59]}  Bb7 {[%clk 0:02:58]} 5. e3 {[%clk 0:02:57]}  Bb4 {[%clk 0:02:58]} 6. Ne2 {[%clk 0:02:56]}  d6 {[%clk 0:02:57]} 7. a3 {[%clk 0:02:38]}  Bxc3+ {[%clk 0:02:57]} 8. Nxc3 {[%clk 0:02:39]}  Nbd7 {[%clk 0:02:55]} 9. f3 {[%clk 0:02:33]}  Nh5 {[%clk 0:02:53]} 10. Be2 {[%clk 0:02:10]}  Nxf4 {[%clk 0:02:49]} 11. exf4 {[%clk 0:02:11]}  Qf6 {[%clk 0:02:48]} 12. Qd2 {[%clk 0:02:11]}  a6 {[%clk 0:02:46]} 13. O-O {[%clk 0:02:09]}  O-O {[%clk 0:02:42]} 14. Rad1 {[%clk 0:02:07]}  Rad8 {[%clk 0:02:42]} 15. d5 {[%clk 0:01:54]}  e5 {[%clk 0:02:38]} 16. fxe5 {[%clk 0:01:51]}  Nxe5 {[%clk 0:02:34]} 17. f4 {[%clk 0:01:52]}  Nd7 {[%clk 0:02:32]} 18. Bf3 {[%clk 0:01:43]}  Rfe8 {[%clk 0:02:29]} 19. Rfe1 {[%clk 0:01:43]}  Rxe1+ {[%clk 0:02:17]} 20. Rxe1 {[%clk 0:01:44]}  Rf8 {[%clk 0:02:16]} 21. Ne4 {[%clk 0:01:33]}  Qd8 {[%clk 0:02:15]} 22. Ng3 {[%clk 0:01:24]}  Bc8 {[%clk 0:02:14]} 23. Nf5 {[%clk 0:01:22]}  Re8 {[%clk 0:02:05]} 24. Nd4 {[%clk 0:01:11]}  Rxe1+ {[%clk 0:02:03]} 25. Qxe1 {[%clk 0:01:12]}  Bb7 {[%clk 0:01:48]} 26. g4 {[%clk 0:01:11]}  Kf8 {[%clk 0:01:46]} 27. g5 {[%clk 0:01:07]}  Qe7 {[%clk 0:01:43]} 28. Qc3 {[%clk 0:01:01]}  Kg8 {[%clk 0:01:27]} 29. Nf5 {[%clk 0:00:59]}  Qf8 {[%clk 0:01:27]} 30. b4 {[%clk 0:00:54]}  Bc8 {[%clk 0:01:25]} 31. Nd4 {[%clk 0:00:54]}  Nb8 {[%clk 0:01:23]} 32. Kf2 {[%clk 0:00:52]}  Qe7 {[%clk 0:01:21]} 33. h4 {[%clk 0:00:51]}  h6 {[%clk 0:01:18]} 34. Qd3 {[%clk 0:00:43]}  hxg5 {[%clk 0:01:17]} 35. hxg5 {[%clk 0:00:44]}  g6 {[%clk 0:01:16]} 36. Be4 {[%clk 0:00:37]}  Nd7 {[%clk 0:01:13]} 37. Nc6 {[%clk 0:00:34]}  Qe8 {[%clk 0:01:12]} 38. Qe3 {[%clk 0:00:20]}  Nf8 {[%clk 0:01:06]} 39. Nd4 {[%clk 0:00:18]}  Bd7 {[%clk 0:01:03]} 40. Kf3 {[%clk 0:00:15]}  Nh7 {[%clk 0:01:01]} 41. Qd3 {[%clk 0:00:12]}  Kg7 {[%clk 0:01:01]} 42. Qc3 {[%clk 0:00:12]}  Kg8 {[%clk 0:01:01]} 43. Qc2 {[%clk 0:00:10]}  Kg7 {[%clk 0:00:54]} 44. Ne2 {[%clk 0:00:10]}  f6 {[%clk 0:00:48]} 45. gxf6+ {[%clk 0:00:05]}  Nxf6 {[%clk 0:00:48]} 46. Nd4 {[%clk 0:00:04]}  Qh8 {[%clk 0:00:46]} 47. Qg2 {[%clk 0:00:02]}  Qh5+ {[%clk 0:00:42]} 48. Ke3 {[%clk 0:00:03]}  Kf7 {[%clk 0:00:23]} 49. Bf3 {[%clk 0:00:03]}  Bg4 {[%clk 0:00:21]} 50. Ne6 {[%clk 0:00:02]}  Qf5 {[%clk 0:00:18]} 51. Ng5+ {[%clk 0:00:02]}  Ke7 {[%clk 0:00:17]} 52. Be4 {[%clk 0:00:03]}  Nxe4 {[%clk 0:00:17]} 53. Qxe4+ {[%clk 0:00:04]}  Qxe4+ {[%clk 0:00:17]} 54. Kxe4 {[%clk 0:00:05]}  Bf5+ {[%clk 0:00:17]} 55. Kd4 {[%clk 0:00:05]}  Kf6 {[%clk 0:00:15]} 56. c5 {[%clk 0:00:05]}  bxc5+ {[%clk 0:00:14]} 57. bxc5 {[%clk 0:00:06]}  Bc2 {[%clk 0:00:13]} 58. Ne6 {[%clk 0:00:04]}  dxc5+ {[%clk 0:00:13]} 59. Kxc5 {[%clk 0:00:04]}  Kf5 {[%clk 0:00:14]} 60. Nxc7 {[%clk 0:00:04]}  Kxf4 {[%clk 0:00:14]} 61. d6 {[%clk 0:00:04]}  Ba4 {[%clk 0:00:14]} 62. Ne6+ {[%clk 0:00:02]}  Kf5 {[%clk 0:00:13]} 63. Nd4+ {[%clk 0:00:03]}  Kf6 {[%clk 0:00:13]} 64. Nc6 {[%clk 0:00:03]}  Ke6 {[%clk 0:00:14]} 65. Nd4+ {[%clk 0:00:02]}  Kd7 {[%clk 0:00:13]} 66. Kd5 {[%clk 0:00:03]}  g5 {[%clk 0:00:13]} 67. Ke5 {[%clk 0:00:02]}  g4 {[%clk 0:00:12]} 68. Nf5 {[%clk 0:00:02]}  Bc2 {[%clk 0:00:12]} 69. Ng3 {[%clk 0:00:01]}  Bb1 {[%clk 0:00:11]} 70. Nh5 {[%clk 0:00:02]}  Bc2 {[%clk 0:00:11]} 71. Nf6+ {[%clk 0:00:02]}  Kd8 {[%clk 0:00:11]} 72. Nxg4 {[%clk 0:00:03]}  Bb1 {[%clk 0:00:11]} 73. Ne3 {[%clk 0:00:03]}  Bd3 {[%clk 0:00:10]} 74. Nd5 {[%clk 0:00:04]}  Bb5 {[%clk 0:00:10]} 75. Nc7 {[%clk 0:00:04]}  Bf1 {[%clk 0:00:10]} 76. Kd4 {[%clk 0:00:04]}  Kd7 {[%clk 0:00:10]} 77. Kc5 {[%clk 0:00:05]}  Be2 {[%clk 0:00:11]} 78. Nd5 {[%clk 0:00:05]}  Bf1 {[%clk 0:00:10]} 79. a4 {[%clk 0:00:05]}  Be2 {[%clk 0:00:09]} 80. a5 {[%clk 0:00:06]}  Bf1 {[%clk 0:00:09]} 81. Nf6+ {[%clk 0:00:06]}  Kd8 {[%clk 0:00:08]} 82. Ne4 {[%clk 0:00:06]}  Kd7 {[%clk 0:00:07]} 83. Nd2 {[%clk 0:00:04]}  Bd3 {[%clk 0:00:07]} 84. Kd5 {[%clk 0:00:04]}  Be2 {[%clk 0:00:07]} 85. Nb3 {[%clk 0:00:04]}  Bf1 {[%clk 0:00:06]} 86. Nc5+ {[%clk 0:00:04]}  Kd8 {[%clk 0:00:05]} 87. Kc6 {[%clk 0:00:03]}  Kc8 {[%clk 0:00:04]} 88. d7+ {[%clk 0:00:03]}  Kd8 {[%clk 0:00:04]} 89. Nb7+ {[%clk 0:00:03]} 1-0


[Site "https://www.chess.com"]

[Event "Titled Tuesday Blitz July 18 Early 2023"]
[White "Matinian, Nikita"]
[Black "Kamsky, Gata"]
[WhiteFideId "24129100"]
[BlackFideId "2000024"]
[WhiteElo "2740"]
[BlackElo "3005"]
[Result "1-0"]
[Round "10"]
[TimeControl "180+2"]
[Date "2023.07.18"]
[WhiteClock "0:00:08"]
[BlackClock "0:00:00"]
[Board "13"]

1. e4 {[%clk 0:03:00]}  c5 {[%clk 0:02:56]} 2. Nf3 {[%clk 0:03:01]}  e6 {[%clk 0:02:57]} 3. d4 {[%clk 0:03:01]}  cxd4 {[%clk 0:02:57]} 4. Nxd4 {[%clk 0:03:02]}  a6 {[%clk 0:02:57]} 5. Nc3 {[%clk 0:03:02]}  b5 {[%clk 0:02:57]} 6. Bd3 {[%clk 0:03:03]}  Qb6 {[%clk 0:02:55]} 7. Nf3 {[%clk 0:03:02]}  Qc7 {[%clk 0:02:54]} 8. O-O {[%clk 0:03:02]}  Bb7 {[%clk 0:02:53]} 9. Re1 {[%clk 0:03:02]}  Nf6 {[%clk 0:02:33]} 10. Bg5 {[%clk 0:02:46]}  h6 {[%clk 0:02:25]} 11. Bh4 {[%clk 0:02:45]}  d6 {[%clk 0:02:16]} 12. a4 {[%clk 0:02:18]}  b4 {[%clk 0:02:09]} 13. Nb1 {[%clk 0:02:10]}  Be7 {[%clk 0:02:07]} 14. Nbd2 {[%clk 0:02:09]}  Nbd7 {[%clk 0:02:05]} 15. a5 {[%clk 0:02:08]}  O-O {[%clk 0:02:02]} 16. Nc4 {[%clk 0:02:04]}  d5 {[%clk 0:01:59]} 17. exd5 {[%clk 0:01:56]}  Bxd5 {[%clk 0:01:58]} 18. Ne3 {[%clk 0:01:56]}  Bb7 {[%clk 0:01:49]} 19. Bg3 {[%clk 0:01:28]}  Qc5 {[%clk 0:01:47]} 20. Nd2 {[%clk 0:01:13]}  Rad8 {[%clk 0:01:42]} 21. Qe2 {[%clk 0:01:13]}  Qc6 {[%clk 0:01:40]} 22. Nf3 {[%clk 0:01:07]}  Nc5 {[%clk 0:01:39]} 23. Ne5 {[%clk 0:01:05]}  Qc8 {[%clk 0:01:38]} 24. Bc4 {[%clk 0:01:02]}  Nfe4 {[%clk 0:01:37]} 25. Qg4 {[%clk 0:00:56]}  Bf6 {[%clk 0:01:33]} 26. Bf4 {[%clk 0:00:49]}  Rd4 {[%clk 0:01:25]} 27. Rad1 {[%clk 0:00:35]}  Rfd8 {[%clk 0:01:20]} 28. Rxd4 {[%clk 0:00:35]}  Rxd4 {[%clk 0:01:20]} 29. Nf5 {[%clk 0:00:30]}  exf5 {[%clk 0:01:02]} 30. Bxf7+ {[%clk 0:00:31]}  Kf8 {[%clk 0:01:02]} 31. Qh5 {[%clk 0:00:22]}  Nd7 {[%clk 0:00:37]} 32. Be6 {[%clk 0:00:15]}  Nxe5 {[%clk 0:00:17]} 33. Bxc8 {[%clk 0:00:14]}  Bxc8 {[%clk 0:00:16]} 34. Be3 {[%clk 0:00:12]}  Rc4 {[%clk 0:00:14]} 35. Qe2 {[%clk 0:00:12]}  Rc6 {[%clk 0:00:11]} 36. Rd1 {[%clk 0:00:11]}  Nf7 {[%clk 0:00:11]} 37. Bd4 {[%clk 0:00:10]}  g6 {[%clk 0:00:09]} 38. Bxf6 {[%clk 0:00:10]}  Nxf6 {[%clk 0:00:09]} 39. Rd4 {[%clk 0:00:08]}  Kg7 {[%clk 0:00:08]} 40. Rc4 {[%clk 0:00:09]}  Rxc4 {[%clk 0:00:04]} 41. Qxc4 {[%clk 0:00:09]}  Bb7 {[%clk 0:00:02]} 42. Qxb4 {[%clk 0:00:09]}  Be4 {[%clk 0:00:02]} 43. Qb6 {[%clk 0:00:09]}  Bxc2 {[%clk 0:00:02]} 44. Qxa6 {[%clk 0:00:09]}  Nd5 {[%clk 0:00:00]} 45. Qb7 {[%clk 0:00:08]} 1-0


[Site "https://www.chess.com"]